[Event "Vener-dì-Lampo"]
[Site "Chess.com"]
[Date "2020.05.08"]
[Round "1"]
[White "pedrak"]
[Black "fisherpez"]
[Result "1-0"]
[WhiteElo "2021"]
[BlackElo "1649"]
[TimeControl "300+2"]
[EndTime "12:04:28 PDT"]
[Termination "pedrak ha vinto per scaccomatto"]

1. d4 {[%clk 0:05:00.6]} 1... e6 {[%clk 0:05:01.1]} 2. Nf3 {[%clk 0:05:00.8]}
2... b6 {[%clk 0:05:02.2]} 3. Bf4 {[%clk 0:05:00.9]} 3... Bb7 {[%clk 0:05:03]}
4. e3 {[%clk 0:05:01.3]} 4... Nf6 {[%clk 0:05:04.2]} 5. Nbd2 {[%clk 0:05:01.7]}
5... Nd5 {[%clk 0:05:02.5]} 6. Bg3 {[%clk 0:05:01.7]} 6... Nf6 {[%clk
0:05:03.5]} 7. h3 {[%clk 0:05:01.7]} 7... d6 {[%clk 0:05:04.5]} 8. c3 {[%clk
0:05:02.1]} 8... Ne4 {[%clk 0:05:04.4]} 9. Bd3 {[%clk 0:05:01.7]} 9... Nxg3
{[%clk 0:05:04.5]} 10. fxg3 {[%clk 0:05:01]} 10... Be7 {[%clk 0:05:04.4]} 11.
O-O {[%clk 0:05:01.2]} 11... Bg5 {[%clk 0:05:05.1]} 12. Qe2 {[%clk 0:05:00.9]}
12... Bf6 {[%clk 0:05:03.4]} 13. e4 {[%clk 0:04:59.3]} 13... O-O {[%clk
0:05:03.6]} 14. Rae1 {[%clk 0:04:57.3]} 14... g6 {[%clk 0:05:04.4]} 15. g4
{[%clk 0:04:52.4]} 15... Nd7 {[%clk 0:05:01]} 16. e5 {[%clk 0:04:47.4]} 16...
Bg7 {[%clk 0:05:00]} 17. Qe3 {[%clk 0:04:36.6]} 17... d5 {[%clk 0:04:58.7]} 18.
g5 {[%clk 0:04:30.8]} 18... c5 {[%clk 0:04:49.5]} 19. Nh2 {[%clk 0:04:28.4]}
19... cxd4 {[%clk 0:04:50.3]} 20. cxd4 {[%clk 0:04:29]} 20... Rc8 {[%clk
0:04:49.9]} 21. Ng4 {[%clk 0:04:29.2]} 21... Rc7 {[%clk 0:04:38.4]} 22. Nf6+
{[%clk 0:04:29.3]} 22... Nxf6 {[%clk 0:04:35.6]} 23. gxf6 {[%clk 0:04:29.4]}
23... Bh8 {[%clk 0:04:36]} 24. Qh6 {[%clk 0:04:23.8]} 24... Re8 {[%clk
0:04:37.1]} 25. Rf4 {[%clk 0:04:23.4]} 25... Ree7 {[%clk 0:03:46.7]} 26. Rh4
{[%clk 0:04:22.4]} 26... Bg7 {[%clk 0:03:34.4]} 27. Qxg7# {[%clk 0:04:21.4]} 1-0

[Event "Vener-dì-Lampo"]
[Site "Chess.com"]
[Date "2020.05.08"]
[Round "1"]
[White "GB86_CHESS"]
[Black "sirmale49"]
[Result "1-0"]
[WhiteElo "1692"]
[BlackElo "1388"]
[TimeControl "300+2"]
[EndTime "12:09:24 PDT"]
[Termination "GB86_CHESS ha vinto per tempo"]

1. e4 {[%clk 0:05:00.5]} 1... d5 {[%clk 0:04:57.9]} 2. exd5 {[%clk 0:04:54.1]}
2... Qxd5 {[%clk 0:04:57.2]} 3. Nc3 {[%clk 0:04:54.7]} 3... Qd6 {[%clk
0:04:57.4]} 4. Bc4 {[%clk 0:04:54.2]} 4... c6 {[%clk 0:04:33.5]} 5. d4 {[%clk
0:04:54.3]} 5... Nf6 {[%clk 0:04:22]} 6. Nge2 {[%clk 0:04:45.6]} 6... Bf5 {[%clk
0:04:18.5]} 7. Bf4 {[%clk 0:04:44.2]} 7... Qb4 {[%clk 0:03:57.6]} 8. Bb3 {[%clk
0:04:35.4]} 8... Nbd7 {[%clk 0:03:45.8]} 9. O-O {[%clk 0:04:35.4]} 9... e6
{[%clk 0:03:28.2]} 10. a3 {[%clk 0:04:35.3]} 10... Qa5 {[%clk 0:03:15.6]} 11.
Ng3 {[%clk 0:04:34.5]} 11... Bg6 {[%clk 0:03:10.6]} 12. Qe2 {[%clk 0:04:23.1]}
12... Nd5 {[%clk 0:02:20]} 13. Nxd5 {[%clk 0:04:07.4]} 13... cxd5 {[%clk
0:02:18.1]} 14. c4 {[%clk 0:04:08]} 14... Nb6 {[%clk 0:01:51.1]} 15. c5 {[%clk
0:03:55.1]} 15... Nd7 {[%clk 0:01:38.6]} 16. Bxd5 {[%clk 0:03:55.3]} 16... Qa6
{[%clk 0:01:15.7]} 17. Qxa6 {[%clk 0:03:45.3]} 17... bxa6 {[%clk 0:01:12.5]} 18.
Bxa8 {[%clk 0:03:45.1]} 18... Be7 {[%clk 0:01:06.8]} 19. Bc6 {[%clk 0:03:40.7]}
19... Bd3 {[%clk 0:00:50.8]} 20. Rfd1 {[%clk 0:03:33.6]} 20... Bc4 {[%clk
0:00:40.5]} 21. Rac1 {[%clk 0:03:19.4]} 21... Bb5 {[%clk 0:00:28]} 22. Bxd7+
{[%clk 0:02:59.6]} 22... Bxd7 {[%clk 0:00:25.2]} 23. c6 {[%clk 0:03:00.7]} 23...
Bc8 {[%clk 0:00:23.8]} 24. Ne4 {[%clk 0:02:59.6]} 1-0

[Event "Vener-dì-Lampo"]
[Site "Chess.com"]
[Date "2020.05.08"]
[Round "1"]
[White "BAKR1980"]
[Black "mr6701"]
[Result "0-1"]
[WhiteElo "1589"]
[BlackElo "1994"]
[TimeControl "300+2"]
[EndTime "12:11:55 PDT"]
[Termination "mr6701 ha vinto per abbandono"]

1. e4 {[%clk 0:05:00.2]} 1... d5 {[%clk 0:05:00.4]} 2. exd5 {[%clk 0:04:55.6]}
2... Nf6 {[%clk 0:05:01.1]} 3. c4 {[%clk 0:04:55.6]} 3... c6 {[%clk 0:05:01.3]}
4. dxc6 {[%clk 0:04:54.3]} 4... Nxc6 {[%clk 0:05:01.1]} 5. Be2 {[%clk
0:04:54.9]} 5... e5 {[%clk 0:05:00.9]} 6. Nf3 {[%clk 0:04:53.7]} 6... Bc5 {[%clk
0:05:01.5]} 7. O-O {[%clk 0:04:53.3]} 7... O-O {[%clk 0:05:02.3]} 8. a3 {[%clk
0:04:54]} 8... e4 {[%clk 0:05:00]} 9. Ne1 {[%clk 0:04:38.5]} 9... a5 {[%clk
0:04:59.1]} 10. Nc3 {[%clk 0:04:35.7]} 10... Nd4 {[%clk 0:04:49.9]} 11. d3
{[%clk 0:04:24.9]} 11... Bf5 {[%clk 0:04:40.4]} 12. dxe4 {[%clk 0:04:21.5]}
12... Nxe4 {[%clk 0:04:23.8]} 13. Nxe4 {[%clk 0:04:16.8]} 13... Bxe4 {[%clk
0:04:23.5]} 14. Be3 {[%clk 0:04:12.9]} 14... f5 {[%clk 0:04:09.6]} 15. Nf3
{[%clk 0:03:54.4]} 15... Nxe2+ {[%clk 0:03:35.7]} 16. Qxe2 {[%clk 0:03:54.1]}
16... Qc7 {[%clk 0:03:28.5]} 17. Bxc5 {[%clk 0:03:45.3]} 17... Qxc5 {[%clk
0:03:30.4]} 18. Ng5 {[%clk 0:03:36.5]} 18... Rae8 {[%clk 0:03:19]} 19. Nxe4
{[%clk 0:03:14.4]} 19... Rxe4 {[%clk 0:03:19.8]} 20. Qd3 {[%clk 0:03:11.4]}
20... Rd4 {[%clk 0:02:59.6]} 21. Qb3 {[%clk 0:03:07.8]} 21... Rxc4 {[%clk
0:02:55.9]} 22. Qxb7 {[%clk 0:03:06.1]} 22... Rc2 {[%clk 0:02:54.9]} 23. b4
{[%clk 0:03:04.8]} 23... axb4 {[%clk 0:02:26.5]} 24. Qxb4 {[%clk 0:02:51]} 24...
Ra8 {[%clk 0:02:03]} 25. Qxc5 {[%clk 0:02:46.2]} 25... Rxc5 {[%clk 0:02:04.9]}
26. g3 {[%clk 0:02:43.7]} 26... Rca5 {[%clk 0:02:04.7]} 27. Rfe1 {[%clk
0:02:37]} 27... Rxa3 {[%clk 0:02:04.5]} 28. Re5 {[%clk 0:02:37]} 28... Rxa1+
{[%clk 0:02:02.9]} 29. Kg2 {[%clk 0:02:37.2]} 29... R1a5 {[%clk 0:02:02.9]} 30.
Re7 {[%clk 0:02:24.2]} 30... g6 {[%clk 0:02:02]} 31. h4 {[%clk 0:02:24.1]} 31...
R5a7 {[%clk 0:02:02.7]} 32. Re6 {[%clk 0:02:23.7]} 32... Kf7 {[%clk 0:02:03.1]}
33. Rc6 {[%clk 0:02:24.1]} 33... Re7 {[%clk 0:02:00.6]} 34. Kf3 {[%clk
0:02:24.4]} 34... Rae8 {[%clk 0:02:01.4]} 35. g4 {[%clk 0:02:21.9]} 35... fxg4+
{[%clk 0:01:59.7]} 36. Kxg4 {[%clk 0:02:22.6]} 36... Re4+ {[%clk 0:01:56.4]} 37.
f4 {[%clk 0:02:23.2]} 37... R8e7 {[%clk 0:01:49.6]} 38. Kg5 {[%clk 0:02:22.1]}
38... Kg7 {[%clk 0:01:40.7]} 39. Kg4 {[%clk 0:02:18.1]} 39... Rf7 {[%clk
0:01:39.1]} 40. h5 {[%clk 0:02:16.3]} 40... Rexf4+ {[%clk 0:01:35.9]} 41. Kg5
{[%clk 0:02:16]} 41... R4f5+ {[%clk 0:01:35.9]} 42. Kg4 {[%clk 0:02:15.4]} 42...
Rxh5 {[%clk 0:01:36.3]} 43. Rc8 {[%clk 0:02:13]} 43... Rhf5 {[%clk 0:01:33.3]}
44. Kg3 {[%clk 0:02:11.6]} 44... Ra5 {[%clk 0:01:32.5]} 45. Kh4 {[%clk
0:02:11.9]} 45... h6 {[%clk 0:01:29.9]} 46. Kh3 {[%clk 0:02:11.7]} 46... h5
{[%clk 0:01:29.4]} 47. Kh4 {[%clk 0:02:12.1]} 47... Rb7 {[%clk 0:01:26.7]} 48.
Rc4 {[%clk 0:02:09.2]} 48... Kh6 {[%clk 0:01:24.5]} 49. Rd4 {[%clk 0:02:09.2]}
49... g5+ {[%clk 0:01:23.2]} 50. Kg3 {[%clk 0:02:09.7]} 50... Rb6 {[%clk
0:01:20.6]} 51. Rd3 {[%clk 0:02:09.5]} 51... Ra4 {[%clk 0:01:19.5]} 52. Kh3
{[%clk 0:02:09.5]} 52... h4 {[%clk 0:01:18.4]} 53. Kh2 {[%clk 0:02:09.4]} 53...
Kh5 {[%clk 0:01:17.6]} 54. Rd2 {[%clk 0:02:08.4]} 54... Rb5 {[%clk 0:01:14.4]}
55. Kh1 {[%clk 0:02:08.8]} 55... h3 {[%clk 0:01:14.2]} 56. Kh2 {[%clk
0:02:09.6]} 56... Kh4 {[%clk 0:01:14.1]} 57. Rc2 {[%clk 0:02:07.8]} 57... g4
{[%clk 0:01:13.8]} 58. Re2 {[%clk 0:02:08]} 58... g3+ {[%clk 0:01:14]} 59. Kg1
{[%clk 0:02:08.1]} 59... Rb1+ {[%clk 0:01:08.7]} 0-1

[Event "Vener-dì-Lampo"]
[Site "Chess.com"]
[Date "2020.05.08"]
[Round "2"]
[White "GB86_CHESS"]
[Black "pedrak"]
[Result "1-0"]
[WhiteElo "1785"]
[BlackElo "2007"]
[TimeControl "300+2"]
[EndTime "12:16:28 PDT"]
[Termination "GB86_CHESS ha vinto per abbandono"]

1. c4 {[%clk 0:05:01.5]} 1... Nf6 {[%clk 0:04:56.3]} 2. g3 {[%clk 0:04:47.3]}
2... c6 {[%clk 0:04:50.9]} 3. d4 {[%clk 0:04:46.8]} 3... d5 {[%clk 0:04:48.8]}
4. Nc3 {[%clk 0:04:39.5]} 4... e6 {[%clk 0:04:44.7]} 5. Bg2 {[%clk 0:04:39.8]}
5... Be7 {[%clk 0:04:43.8]} 6. Nf3 {[%clk 0:04:40.2]} 6... O-O {[%clk
0:04:43.8]} 7. cxd5 {[%clk 0:04:39.9]} 7... exd5 {[%clk 0:04:37.5]} 8. O-O
{[%clk 0:04:41.8]} 8... Bf5 {[%clk 0:04:35.4]} 9. Bf4 {[%clk 0:04:39]} 9... Ne4
{[%clk 0:04:32.2]} 10. Rc1 {[%clk 0:04:37.4]} 10... Nd7 {[%clk 0:04:30.3]} 11.
Nxe4 {[%clk 0:04:20.5]} 11... Bxe4 {[%clk 0:04:29.7]} 12. a3 {[%clk 0:04:16.7]}
12... Nf6 {[%clk 0:04:28.1]} 13. b4 {[%clk 0:04:16.2]} 13... a6 {[%clk
0:04:27.9]} 14. Nd2 {[%clk 0:04:15.5]} 14... Bxg2 {[%clk 0:04:27.5]} 15. Kxg2
{[%clk 0:04:16.9]} 15... Bd6 {[%clk 0:04:22.2]} 16. Bxd6 {[%clk 0:04:07.7]}
16... Qxd6 {[%clk 0:04:22.5]} 17. Nb3 {[%clk 0:04:07.6]} 17... Rfe8 {[%clk
0:04:22.2]} 18. e3 {[%clk 0:04:07.7]} 18... Re7 {[%clk 0:04:14.7]} 19. Nc5
{[%clk 0:04:07.6]} 19... Rae8 {[%clk 0:04:13.7]} 20. Qd3 {[%clk 0:04:04.7]}
20... Ne4 {[%clk 0:04:12.6]} 21. a4 {[%clk 0:03:56.8]} 21... Nxc5 {[%clk
0:04:02.1]} 22. dxc5 {[%clk 0:03:43.7]} 22... Re4 {[%clk 0:03:50.7]} 23. cxd6
{[%clk 0:03:41.9]} 1-0

[Event "Vener-dì-Lampo"]
[Site "Chess.com"]
[Date "2020.05.08"]
[Round "2"]
[White "sirmale49"]
[Black "BAKR1980"]
[Result "0-1"]
[WhiteElo "1384"]
[BlackElo "1593"]
[TimeControl "300+2"]
[EndTime "12:21:26 PDT"]
[Termination "BAKR1980 ha vinto per tempo"]

1. e4 {[%clk 0:05:01.9]} 1... e5 {[%clk 0:04:59.5]} 2. f4 {[%clk 0:05:02.1]}
2... exf4 {[%clk 0:04:59.6]} 3. Nf3 {[%clk 0:05:02.4]} 3... Be7 {[%clk
0:05:00.6]} 4. d4 {[%clk 0:05:00.8]} 4... d5 {[%clk 0:05:01]} 5. Nc3 {[%clk
0:04:51.4]} 5... Bh4+ {[%clk 0:05:00.7]} 6. Ke2 {[%clk 0:04:26.5]} 6... Bg4
{[%clk 0:05:00.2]} 7. Bxf4 {[%clk 0:04:21.7]} 7... dxe4 {[%clk 0:04:59.5]} 8.
Nxe4 {[%clk 0:04:20.6]} 8... Qe7 {[%clk 0:04:59.3]} 9. Kd3 {[%clk 0:04:04.8]}
9... Nc6 {[%clk 0:04:52.4]} 10. c3 {[%clk 0:04:02.4]} 10... O-O-O {[%clk
0:04:52.1]} 11. Be2 {[%clk 0:03:55.6]} 11... Bf5 {[%clk 0:04:44.9]} 12. Nd2
{[%clk 0:03:33.7]} 12... Nf6 {[%clk 0:04:36.7]} 13. Bf3 {[%clk 0:03:04.8]} 13...
Rhe8 {[%clk 0:04:27.2]} 14. Qe2 {[%clk 0:03:01.7]} 14... Na5 {[%clk 0:04:10.9]}
15. b3 {[%clk 0:02:57.8]} 15... c5 {[%clk 0:04:00.8]} 16. Rac1 {[%clk
0:02:38.3]} 16... Nd5 {[%clk 0:03:52.9]} 17. Be3 {[%clk 0:01:57.9]} 17... Bg5
{[%clk 0:03:30.5]} 18. Bxg5 {[%clk 0:01:28.1]} 18... Qxg5 {[%clk 0:03:29.7]} 19.
Kc2 {[%clk 0:01:08.8]} 19... cxd4 {[%clk 0:03:23.8]} 20. cxd4 {[%clk 0:00:48.3]}
20... Nf6 {[%clk 0:03:16.8]} 21. Kb2+ {[%clk 0:00:29.6]} 21... Kb8 {[%clk
0:03:16.9]} 22. Nxg5 {[%clk 0:00:26.1]} 22... Rxe2 {[%clk 0:03:13.8]} 23. Bxe2
{[%clk 0:00:25.2]} 23... Rxd4 {[%clk 0:03:12.9]} 24. Ngf3 {[%clk 0:00:11.6]}
24... Rd8 {[%clk 0:03:10.1]} 25. Rhd1 {[%clk 0:00:05.1]} 25... Nc6 {[%clk
0:03:10.9]} 26. Nc4 {[%clk 0:00:05.1]} 26... Re8 {[%clk 0:03:11.8]} 27. Nd6
{[%clk 0:00:02.9]} 27... Rxe2+ {[%clk 0:03:05.9]} 0-1

[Event "Vener-dì-Lampo"]
[Site "Chess.com"]
[Date "2020.05.08"]
[Round "2"]
[White "mr6701"]
[Black "SanSecondoPR"]
[Result "1-0"]
[WhiteElo "1994"]
[BlackElo "1283"]
[TimeControl "300+2"]
[EndTime "12:22:01 PDT"]
[Termination "mr6701 ha vinto per scaccomatto"]

1. e4 {[%clk 0:05:01.9]} 1... e5 {[%clk 0:04:59.1]} 2. d4 {[%clk 0:05:02.8]}
2... exd4 {[%clk 0:04:59.1]} 3. c3 {[%clk 0:05:03.9]} 3... d5 {[%clk 0:04:58.8]}
4. exd5 {[%clk 0:05:04.4]} 4... Nf6 {[%clk 0:04:56.2]} 5. cxd4 {[%clk
0:05:05.3]} 5... Bb4+ {[%clk 0:04:52.2]} 6. Nc3 {[%clk 0:05:05.4]} 6... O-O
{[%clk 0:04:50]} 7. Nf3 {[%clk 0:05:00.4]} 7... Bg4 {[%clk 0:04:43.7]} 8. Be2
{[%clk 0:05:00.3]} 8... Nxd5 {[%clk 0:04:27.5]} 9. Bd2 {[%clk 0:05:01.2]} 9...
Nxc3 {[%clk 0:04:20]} 10. bxc3 {[%clk 0:05:00.6]} 10... Bd6 {[%clk 0:04:16.5]}
11. O-O {[%clk 0:05:00.9]} 11... Re8 {[%clk 0:04:04.9]} 12. h3 {[%clk
0:05:01.4]} 12... Bh5 {[%clk 0:04:00.5]} 13. Re1 {[%clk 0:04:52.6]} 13... Nd7
{[%clk 0:03:46.4]} 14. Bg5 {[%clk 0:04:47.7]} 14... Nf6 {[%clk 0:03:43]} 15. c4
{[%clk 0:04:46.8]} 15... Be7 {[%clk 0:03:26.1]} 16. Be3 {[%clk 0:04:43.2]} 16...
Bb4 {[%clk 0:03:15.4]} 17. Rf1 {[%clk 0:04:41.3]} 17... Ne4 {[%clk 0:02:58.1]}
18. Qb3 {[%clk 0:04:35.3]} 18... Bc3 {[%clk 0:02:41]} 19. Rac1 {[%clk
0:03:46.3]} 19... Ba5 {[%clk 0:02:05.1]} 20. Qxb7 {[%clk 0:03:34.8]} 20... Rb8
{[%clk 0:01:39.4]} 21. Qxa7 {[%clk 0:03:32.4]} 21... Bb6 {[%clk 0:01:37.4]} 22.
Qa4 {[%clk 0:03:25]} 22... Ra8 {[%clk 0:01:13.6]} 23. Qb5 {[%clk 0:03:20]} 23...
Ra5 {[%clk 0:01:01]} 24. Qb1 {[%clk 0:03:10.6]} 24... c5 {[%clk 0:00:24.9]} 25.
d5 {[%clk 0:03:01.7]} 25... Bg6 {[%clk 0:00:20.2]} 26. Bd3 {[%clk 0:02:56.3]}
26... Qf6 {[%clk 0:00:11.2]} 27. Rce1 {[%clk 0:02:42.1]} 27... Nc3 {[%clk
0:00:04.1]} 28. Bg5 {[%clk 0:02:17.6]} 28... Bxd3 {[%clk 0:00:06]} 29. Rxe8#
{[%clk 0:02:17.4]} 1-0

[Event "Vener-dì-Lampo"]
[Site "Chess.com"]
[Date "2020.05.08"]
[Round "2"]
[White "fisherpez"]
[Black "markk000"]
[Result "1-0"]
[WhiteElo "1655"]
[BlackElo "1544"]
[TimeControl "300+2"]
[EndTime "12:22:40 PDT"]
[Termination "fisherpez ha vinto per abbandono"]

1. e3 {[%clk 0:05:01.9]} 1... d5 {[%clk 0:04:56.7]} 2. b3 {[%clk 0:05:03.2]}
2... Nf6 {[%clk 0:04:55.8]} 3. Bb2 {[%clk 0:05:04.5]} 3... e6 {[%clk 0:04:56.8]}
4. Nf3 {[%clk 0:05:05.6]} 4... Bd6 {[%clk 0:04:57.8]} 5. Be2 {[%clk 0:05:05.8]}
5... O-O {[%clk 0:04:58.8]} 6. h3 {[%clk 0:05:07]} 6... c6 {[%clk 0:04:57.8]} 7.
Nh2 {[%clk 0:05:07.6]} 7... Bxh2 {[%clk 0:04:56.1]} 8. Rxh2 {[%clk 0:05:08.3]}
8... Qd6 {[%clk 0:04:57.2]} 9. Rh1 {[%clk 0:05:09.3]} 9... Ne4 {[%clk
0:04:58.3]} 10. d3 {[%clk 0:05:08.4]} 10... Nc5 {[%clk 0:04:44.7]} 11. Nc3
{[%clk 0:04:53.6]} 11... e5 {[%clk 0:04:35.6]} 12. Bg4 {[%clk 0:04:52.4]} 12...
Nba6 {[%clk 0:04:29.8]} 13. Bxc8 {[%clk 0:04:52.1]} 13... Raxc8 {[%clk
0:04:31.7]} 14. Qg4 {[%clk 0:04:52.7]} 14... d4 {[%clk 0:04:30.1]} 15. Ne4
{[%clk 0:04:49.2]} 15... dxe3 {[%clk 0:04:24.9]} 16. fxe3 {[%clk 0:04:49.8]}
16... Nxe4 {[%clk 0:04:23.7]} 17. Qxe4 {[%clk 0:04:48.9]} 17... Rfe8 {[%clk
0:04:19.8]} 18. O-O-O {[%clk 0:04:47.5]} 18... Nc5 {[%clk 0:04:17.8]} 19. Qg4
{[%clk 0:04:46.2]} 19... Qh6 {[%clk 0:04:13.5]} 20. Qg3 {[%clk 0:04:32.5]} 20...
f6 {[%clk 0:04:09.1]} 21. Kb1 {[%clk 0:04:25.3]} 21... a5 {[%clk 0:04:10]} 22.
e4 {[%clk 0:04:21.9]} 22... a4 {[%clk 0:04:09.7]} 23. Bc1 {[%clk 0:04:22.7]}
23... Qg6 {[%clk 0:04:05.7]} 24. Qxg6 {[%clk 0:04:21]} 24... hxg6 {[%clk
0:04:07.6]} 25. b4 {[%clk 0:04:14.9]} 25... Ne6 {[%clk 0:04:04.3]} 26. Bb2
{[%clk 0:04:03.4]} 26... c5 {[%clk 0:03:56.9]} 27. c3 {[%clk 0:03:53.5]} 27...
Red8 {[%clk 0:03:36.8]} 28. a3 {[%clk 0:03:52.9]} 28... Nf4 {[%clk 0:03:37.3]}
29. Kc2 {[%clk 0:03:19.7]} 29... Nxg2 {[%clk 0:03:29.7]} 30. Bc1 {[%clk
0:03:05.4]} 30... cxb4 {[%clk 0:03:27.8]} 31. axb4 {[%clk 0:03:05.8]} 31... a3
{[%clk 0:03:24.9]} 32. Rhg1 {[%clk 0:03:04.6]} 32... Nf4 {[%clk 0:03:13]} 33.
Bxf4 {[%clk 0:03:05.2]} 33... exf4 {[%clk 0:03:14.9]} 34. Rxg6 {[%clk
0:03:06.1]} 34... a2 {[%clk 0:03:04.6]} 35. Ra1 {[%clk 0:03:03.7]} 35... Ra8
{[%clk 0:03:03.4]} 36. d4 {[%clk 0:03:00.1]} 36... f3 {[%clk 0:03:04.3]} 37. Rg4
{[%clk 0:02:56.6]} 37... f2 {[%clk 0:03:03.9]} 38. Rf4 {[%clk 0:02:57.6]} 38...
Re8 {[%clk 0:02:56.2]} 39. Kd3 {[%clk 0:02:57.8]} 39... f1=Q+ {[%clk 0:02:45.8]}
40. Rfxf1 {[%clk 0:02:56.9]} 40... Ra3 {[%clk 0:02:46.5]} 41. Rf2 {[%clk
0:02:56.6]} 41... Rc8 {[%clk 0:02:46.5]} 42. Rc2 {[%clk 0:02:56.8]} 42... Kf7
{[%clk 0:02:44.5]} 43. Raxa2 {[%clk 0:02:51.3]} 43... Rxa2 {[%clk 0:02:40.8]}
44. Rxa2 {[%clk 0:02:51.9]} 44... Rc7 {[%clk 0:02:40.4]} 45. Ra5 {[%clk
0:02:52.5]} 45... Kg6 {[%clk 0:02:41.1]} 46. Rd5 {[%clk 0:02:49]} 46... Kh6
{[%clk 0:02:40.1]} 47. e5 {[%clk 0:02:47.2]} 47... f5 {[%clk 0:02:40.2]} 48. e6
{[%clk 0:02:48.5]} 48... Re7 {[%clk 0:02:40.6]} 49. Rxf5 {[%clk 0:02:47.8]}
49... Rxe6 {[%clk 0:02:41]} 50. Rf7 {[%clk 0:02:48.4]} 50... b6 {[%clk
0:02:40.9]} 51. Rb7 {[%clk 0:02:44.5]} 51... g5 {[%clk 0:02:40.7]} 52. Rb8
{[%clk 0:02:41.8]} 52... Kh5 {[%clk 0:02:36.3]} 53. Rh8+ {[%clk 0:02:42.5]}
53... Kg6 {[%clk 0:02:37.3]} 54. Rg8+ {[%clk 0:02:41]} 54... Kh5 {[%clk
0:02:38.1]} 55. Rh8+ {[%clk 0:02:41.6]} 55... Kg6 {[%clk 0:02:39.4]} 56. d5
{[%clk 0:02:41.5]} 56... Rd6 {[%clk 0:02:37.4]} 57. Kd4 {[%clk 0:02:38]} 57...
Kg7 {[%clk 0:02:38.1]} 58. Rh5 {[%clk 0:02:36.6]} 58... Kg6 {[%clk 0:02:38.1]}
59. Rh8 {[%clk 0:02:37.5]} 59... Kg7 {[%clk 0:02:37.3]} 60. Re8 {[%clk 0:02:37]}
60... Kf6 {[%clk 0:02:34.1]} 61. c4 {[%clk 0:02:31.7]} 61... Kf5 {[%clk
0:02:32]} 62. c5 {[%clk 0:02:32.1]} 62... bxc5+ {[%clk 0:02:32.4]} 63. bxc5
{[%clk 0:02:33.3]} 63... Rh6 {[%clk 0:02:33.1]} 64. Re3 {[%clk 0:02:27.8]} 64...
Rh4+ {[%clk 0:02:33.6]} 65. Kd3 {[%clk 0:02:26.7]} 65... Kf4 {[%clk 0:02:34.5]}
66. d6 {[%clk 0:02:26]} 66... Rh8 {[%clk 0:02:33.2]} 67. c6 {[%clk 0:02:23.2]}
67... Rd8 {[%clk 0:02:33.5]} 68. d7 {[%clk 0:02:20.5]} 68... g4 {[%clk
0:02:28.8]} 69. hxg4 {[%clk 0:02:20.5]} 69... Kxg4 {[%clk 0:02:29.9]} 70. Re8
{[%clk 0:02:20.5]} 1-0

[Event "Vener-dì-Lampo"]
[Site "Chess.com"]
[Date "2020.05.08"]
[Round "3"]
[White "SanSecondoPR"]
[Black "fisherpez"]
[Result "0-1"]
[WhiteElo "1281"]
[BlackElo "1657"]
[TimeControl "300+2"]
[EndTime "12:32:24 PDT"]
[Termination "fisherpez ha vinto per tempo"]

1. e4 {[%clk 0:05:01.9]} 1... e6 {[%clk 0:05:01.6]} 2. d4 {[%clk 0:04:57.6]}
2... b6 {[%clk 0:05:02.7]} 3. Nf3 {[%clk 0:04:53.7]} 3... Bb7 {[%clk 0:05:03.7]}
4. Bd3 {[%clk 0:04:52.4]} 4... Nf6 {[%clk 0:05:04.7]} 5. e5 {[%clk 0:04:51.5]}
5... Nd5 {[%clk 0:05:04.9]} 6. c4 {[%clk 0:04:49.9]} 6... Ne7 {[%clk 0:05:05.9]}
7. Nbd2 {[%clk 0:04:49.2]} 7... Ng6 {[%clk 0:05:06.8]} 8. Qc2 {[%clk 0:04:48.7]}
8... Bb4 {[%clk 0:05:04.6]} 9. O-O {[%clk 0:04:47.2]} 9... Bxd2 {[%clk
0:05:05.4]} 10. Nxd2 {[%clk 0:04:46.5]} 10... Nf4 {[%clk 0:04:59.6]} 11. Be4
{[%clk 0:04:38.9]} 11... Ne2+ {[%clk 0:04:52.1]} 12. Kh1 {[%clk 0:04:34.8]}
12... Nxd4 {[%clk 0:04:52.9]} 13. Qd3 {[%clk 0:04:32]} 13... Nbc6 {[%clk
0:04:51.9]} 14. Bxc6 {[%clk 0:04:25.4]} 14... Nxc6 {[%clk 0:04:52]} 15. f4
{[%clk 0:04:17]} 15... O-O {[%clk 0:04:43]} 16. Nf3 {[%clk 0:04:05.2]} 16... f5
{[%clk 0:04:43.4]} 17. a3 {[%clk 0:03:51.5]} 17... a5 {[%clk 0:04:34.2]} 18. b3
{[%clk 0:03:49.6]} 18... Ne7 {[%clk 0:04:27.1]} 19. Ng5 {[%clk 0:03:40.3]} 19...
h6 {[%clk 0:04:23.6]} 20. Nh3 {[%clk 0:03:35.4]} 20... Ng6 {[%clk 0:04:21.3]}
21. Nf2 {[%clk 0:03:27.6]} 21... Nh4 {[%clk 0:04:19.8]} 22. Rg1 {[%clk
0:03:20.5]} 22... Qe7 {[%clk 0:04:10.6]} 23. a4 {[%clk 0:03:12.8]} 23... Qf7
{[%clk 0:04:02]} 24. Qh3 {[%clk 0:03:05.7]} 24... Ng6 {[%clk 0:03:58.8]} 25. Ba3
{[%clk 0:02:52.4]} 25... c5 {[%clk 0:03:55]} 26. Qg3 {[%clk 0:02:43.3]} 26...
Kh7 {[%clk 0:03:51.5]} 27. Nd3 {[%clk 0:02:39.8]} 27... Qe7 {[%clk 0:03:48]} 28.
Raf1 {[%clk 0:02:19.9]} 28... Qh4 {[%clk 0:03:37]} 29. Bc1 {[%clk 0:02:03.3]}
29... Qxg3 {[%clk 0:03:34.3]} 30. hxg3 {[%clk 0:02:00.8]} 30... Ne7 {[%clk
0:03:31.8]} 31. Kh2 {[%clk 0:01:53.7]} 31... Nc6 {[%clk 0:03:32.5]} 32. Bb2
{[%clk 0:01:31.6]} 32... Kg8 {[%clk 0:03:29.7]} 33. Kh3 {[%clk 0:01:22.6]} 33...
g5 {[%clk 0:03:25.4]} 34. fxg5 {[%clk 0:01:15.8]} 34... hxg5 {[%clk 0:03:26.1]}
35. g4 {[%clk 0:01:10.4]} 35... f4 {[%clk 0:03:26.1]} 36. g3 {[%clk 0:01:01.4]}
36... f3 {[%clk 0:03:18.4]} 0-1